[Event "8. Arber-Schachopen 2019"]
[Site "Bodenmais"]
[Date "2019.08.01"]
[Round "6.6"]
[White "Schleining, Zoya"]
[Black "Bensch, Patrick"]
[Result "1/2-1/2"]
[ECO "A05"]
[WhiteElo "2339"]
[BlackElo "2197"]
[Annotator "NA"]
[PlyCount "152"]
[EventDate "2019.07.27"]
[EventCountry "GER"]
[SourceTitle "playchess.com"]
[Source "ChessBase"]
[SourceQuality "1"]
[TimeControl "40/5400+30:1800+30"]

1. Nf3 {[%emt 0:00:00]} Nf6 {[%emt 0:01:10]} 2. g3 {[%emt 0:00:00]} g6 {[%emt 0:00:31]} 3. b3 {[%emt 0:00:00]} Bg7 {[%emt 0:00:47]} 4. Bb2 {[%emt 0:00:00]} O-O {[%emt 0:03:43]} 5. Bg2 {[%emt 0:00:02]} d5 {[%emt 0:09:33]} 6. c4 {[%emt 0:04:32]} c6 {[%emt 0:02:19]} 7. O-O {[%emt 0:03:44]} a5 {[%emt 0:08:06]} 8. Nc3 {[%emt 0:09:30]} Ne4 {[%emt 0:05:06]} 9. d4 {[%emt 0:11:06]} Bf5 {[%emt 0:06:06]} 10. Nh4 {[%emt 0:10:14]} Nxc3 {[%emt 0:00:39]} 11. Bxc3 {[%emt 0:00:04]} Be6 {[%emt 0:00:26]} 12. c5 {[%emt 0:07:39]} Nd7 {[%emt 0:01:24]} 13. Rc1 {[%emt 0:04:05]} Nf6 {[%emt 0:06:05]} 14. Ba1 {[%emt 0:11:50]} Bh6 {[%emt 0:04:32]} 15. e3 {[%emt 0:02:35]} Qc8 {[%emt 0:04:33]} 16. Nf3 {[%emt 0:02:30]} Bg4 {[%emt 0:01:58]} 17. Qe1 {[%emt 0:02:25]} Bh3 {[%emt 0:13:26]} 18. Ne5 {[%emt 0:00:27]} Ne4 {[%emt 0:03:47]} 19. f3 {[%emt 0:04:38]} Ng5 {[%emt 0:04:20]} 20. Bxh3 {[%emt 0:01:45]} Qxh3 {[%emt 0:00:31]} 21. Qe2 {[%emt 0:00:48]} Bg7 {[%emt 0:02:53]} 22. Nd3 {[%emt 0:02:57]} h5 {[%emt 0:03:42]} 23. a4 {[%emt 0:01:56]} Ne6 {[%emt 0:06:58]} 24. Bc3 {[%emt 0:03:59]} Bh6 {[%emt 0:04:27]} 25. Rc2 {[%emt 0:02:50]} Ng7 {[%emt 0:01:33]} 26. Re1 {[%emt 0:05:23]} Qe6 {[%emt 0:00:46]} 27. Nf4 {[%emt 0:03:34]} Bxf4 {[%emt 0:00:41]} 28. gxf4 {[%emt 0:01:27]} Qf5 {[%emt 0:00:44]} 29. Kh1 {[%emt 0:00:28]} Ne6 {[%emt 0:00:53]} 30. Rg1 {[%emt 0:00:28]} Kh7 {[%emt 0:00:48]} 31. Be1 {[%emt 0:01:36]} Rg8 {[%emt 0:00:44]} 32. Bh4 {[%emt 0:00:34]} f6 {[%emt 0:00:37]} 33. Bg3 {[%emt 0:00:50]} Qh3 {[%emt 0:00:41]} 34. Qf1 {[%emt 0:01:06]} Qxf1 {[%emt 0:00:32]} 35. Rxf1 {[%emt 0:00:01]} Kg7 {[%emt 0:01:15]} 36. Rb1 {[%emt 0:00:45]} Rgd8 {[%emt 0:00:33]} 37. Rcb2 {[%emt 0:00:57]} Rd7 {[%emt 0:00:21]} 38. h4 {[%emt 0:00:48]} Kf7 {[%emt 0:00:20]} 39. Kg2 {[%emt 0:00:23]} Ng7 {[%emt 0:00:41]} 40. Bf2 {[%emt 0:00:24]} Nf5 {[%emt 0:00:20]} 41. Kf1 {[%emt 0:30:27]} Ra7 {[%emt 0:10:25]} 42. Ke2 {[%emt 0:00:00]} e6 {[%emt 0:03:40]} 43. Kd3 {[%emt 0:00:00]} Ra8 {[%emt 0:03:09]} 44. Be1 {[%emt 0:00:00]} Re8 {[%emt 0:02:22]} 45. b4 {[%emt 0:00:00]} e5 {[%emt 0:02:23]} 46. fxe5 {[%emt 0:00:00]} fxe5 {[%emt 0:00:04]} 47. bxa5 {[%emt 0:00:00]} exd4 {[%emt 0:07:31]} 48. e4 {[%emt 0:00:00]} dxe4+ {[%emt 0:01:12]} 49. fxe4 {[%emt 0:00:00]} Ng7 {[%emt 0:02:40]} 50. Rxb7 {[%emt 0:00:00]} Red8 {[%emt 0:00:07]} 51. a6 {[%emt 0:00:00]} Ne6 {[%emt 0:00:12]} 52. Kc4 {[%emt 0:00:00]} Kf6 {[%emt 0:01:22]} 53. a7 {[%emt 0:00:00]} Rxb7 {[%emt 0:01:09]} 54. Rxb7 {[%emt 0:00:00]} Ra8 {[%emt 0:00:24]} 55. Ba5 {[%emt 0:00:00]} Ke5 {[%emt 0:01:07]} 56. Bb6 {[%emt 0:00:00]} Kxe4 {[%emt 0:00:12]} 57. Rb8 {[%emt 0:04:17]} d3 {[%emt 0:00:18]} 58. Kc3 {[%emt 0:01:20]} Ke3 {[%emt 0:00:23]} 59. Rb7 {[%emt 0:02:22]} Nf4 {[%emt 0:01:41]} 60. Re7+ {[%emt 0:00:44]} Kf3 {[%emt 0:00:02]} 61. Kd2 {[%emt 0:01:00]} g5 {[%emt 0:00:56]} 62. hxg5 {[%emt 0:00:46]} h4 {[%emt 0:00:31]} 63. Rh7 {[%emt 0:01:03]} Kg4 {[%emt 0:00:33]} 64. g6 {[%emt 0:00:32]} Nxg6 {[%emt 0:00:06]} 65. Rg7 {[%emt 0:00:15]} Kf5 {[%emt 0:00:23]} 66. Kxd3 {[%emt 0:00:14]} h3 {[%emt 0:00:22]} 67. Rh7 {[%emt 0:00:07]} Kg4 {[%emt 0:00:26]} 68. Ke2 {[%emt 0:00:41]} Nf4+ {[%emt 0:00:53]} 69. Kf2 {[%emt 0:00:31]} Nd5 {[%emt 0:00:42]} 70. Kg1 {[%emt 0:00:40]} Re8 {[%emt 0:00:30]} 71. Ba5 {[%emt 0:01:03]} Nf4 {[%emt 0:00:39]} 72. Bc7 {[%emt 0:00:55]} Nd5 {[%emt 0:00:28]} 73. Bb8 {[%emt 0:00:19]} Nf4 {[%emt 0:00:35]} 74. a8=Q {[%emt 0:00:30]} Re1+ {[%emt 0:00:23]} 75. Kh2 {[%emt 0:00:20]} Re2+ {[%emt 0:00:07]} 76. Kg1 {[%emt 0:00:22]} Re1+ {[%emt 0:00:11]} 1/2-1/2

[Event "8. Arber-Schachopen 2019"]
[Site "Bodenmais"]
[Date "2019.08.01"]
[Round "6.7"]
[White "Hopman, Pieter"]
[Black "Schelle, Artur"]
[Result "1-0"]
[ECO "E73"]
[WhiteElo "2347"]
[BlackElo "2176"]
[Annotator "NA"]
[PlyCount "115"]
[EventDate "2019.07.27"]
[EventCountry "GER"]
[SourceTitle "playchess.com"]
[Source "ChessBase"]
[SourceQuality "1"]
[TimeControl "40/5400+30:1800+30"]

1. e4 {[%emt 0:00:00]} g6 {[%emt 0:00:00]} 2. d4 {[%emt 0:00:00]} Bg7 {[%emt 0:00:00]} 3. c4 {[%emt 0:00:19]} d6 {[%emt 0:03:38]} 4. Nc3 {[%emt 0:00:17]} Nf6 {[%emt 0:00:05]} 5. Be2 {[%emt 0:00:09]} O-O {[%emt 0:00:09]} 6. Be3 {[%emt 0:00:03]} Na6 {[%emt 0:05:34]} 7. Nf3 {[%emt 0:05:52]} e5 {[%emt 0:01:41]} 8. d5 {[%emt 0:00:36]} Ng4 {[%emt 0:02:49]} 9. Bg5 {[%emt 0:02:05]} f6 {[%emt 0:03:53]} 10. Bh4 {[%emt 0:00:57]} h5 {[%emt 0:03:12]} 11. Nd2 {[%emt 0:02:53]} Nh6 {[%emt 0:00:32]} 12. f3 {[%emt 0:00:26]} Nf7 {[%emt 0:01:20]} 13. Nb3 {[%emt 0:02:57]} Bh6 {[%emt 0:03:59]} 14. Bd3 {[%emt 0:01:17]} Nc5 {[%emt 0:04:32]} 15. Bc2 {[%emt 0:00:46]} Kg7 {[%emt 0:04:28]} 16. Na5 {[%emt 0:02:20]} c6 {[%emt 0:15:54]} 17. b4 {[%emt 0:00:19]} Bd7 {[%emt 0:00:13]} 18. a3 {[%emt 0:04:55]} Be3 {[%emt 0:01:40]} 19. Ra2 {[%emt 0:00:09]} g5 {[%emt 0:00:55]} 20. Bg3 {[%emt 0:02:08]} h4 {[%emt 0:04:25]} 21. Ke2 {[%emt 0:00:29]} Bd4 {[%emt 0:01:07]} 22. Be1 {[%emt 0:00:06]} cxd5 {[%emt 0:03:26]} 23. exd5 {[%emt 0:02:29]} Nh6 {[%emt 0:06:08]} 24. Kf1 {[%emt 0:08:21]} b6 {[%emt 0:10:25]} 25. bxc5 {[%emt 0:01:36]} bxa5 {[%emt 0:00:05]} 26. c6 {[%emt 0:00:52]} Nf5 {[%emt 0:00:15]} 27. Bd2 {[%emt 0:03:40]} Bxc3 {[%emt 0:00:27]} 28. Bxf5 {[%emt 0:00:12]} Bxf5 {[%emt 0:01:25]} 29. Bxc3 {[%emt 0:00:05]} Rb8 {[%emt 0:01:14]} 30. Ke2 {[%emt 0:02:02]} Qb6 {[%emt 0:05:52]} 31. Qa4 {[%emt 0:04:53]} Qc5 {[%emt 0:00:22]} 32. Bd2 {[%emt 0:00:45]} Qd4 {[%emt 0:00:39]} 33. Be3 {[%emt 0:02:21]} Bd3+ {[%emt 0:01:04]} 34. Kd2 {[%emt 0:01:29]} Qxc4 {[%emt 0:10:45]} 35. Qxc4 {[%emt 0:00:05]} Bxc4 {[%emt 0:00:06]} 36. Rc2 {[%emt 0:00:06]} Bxd5 {[%emt 0:00:08]} 37. c7 {[%emt 0:00:23]} Ra8 {[%emt 0:00:34]} 38. Bxa7 {[%emt 0:00:18]} Kf7 {[%emt 0:02:10]} 39. Bb8 {[%emt 0:01:25]} Rc8 {[%emt 0:00:18]} 40. Ke3 {[%emt 0:00:55]} Ra6 {[%emt 0:00:50]} 41. Rb1 {[%emt 0:30:57]} a4 {[%emt 0:31:27]} 42. g3 {[%emt 0:02:35]} Bb3 {[%emt 0:01:34]} 43. Rc3 {[%emt 0:01:03]} d5 {[%emt 0:01:07]} 44. Rc5 {[%emt 0:00:19]} hxg3 {[%emt 0:00:54]} 45. hxg3 {[%emt 0:00:06]} Ke6 {[%emt 0:00:03]} 46. Rh1 {[%emt 0:01:22]} d4+ {[%emt 0:00:00]} 47. Kf2 {[%emt 0:00:00]} Rd6 {[%emt 0:00:00]} 48. Ke2 {[%emt 0:00:00]} Kf5 {[%emt 0:00:00]} 49. Rhc1 {[%emt 0:00:00]} d3+ {[%emt 0:00:00]} 50. Kd2 {[%emt 0:00:00]} Bc2 {[%emt 0:00:00]} 51. Rc4 {[%emt 0:00:00]} Ke6 {[%emt 0:00:00]} 52. Rh1 {[%emt 0:00:00]} Kd5 {[%emt 0:00:00]} 53. Rb4 {[%emt 0:00:00]} Ke6 {[%emt 0:00:00]} 54. Rh7 {[%emt 0:00:00]} Rc6 {[%emt 0:00:00]} 55. Rb7 {[%emt 0:00:00]} Rd6 {[%emt 0:00:00]} 56. Ba7 {[%emt 0:00:00]} Rc6 {[%emt 0:00:00]} 57. Bb6 {[%emt 0:00:00]} Bb1 {[%emt 0:00:00]} 58. Rb8 {[%emt 0:00:00]} 1-0

[Event "8. Arber-Schachopen 2019"]
[Site "Bodenmais"]
[Date "2019.08.01"]
[Round "6.8"]
[White "Kottmair, Toni"]
[Black "Hausner, Ivan"]
[Result "0-1"]
[ECO "B68"]
[WhiteElo "2086"]
[BlackElo "2370"]
[Annotator "NA"]
[PlyCount "88"]
[EventDate "2019.07.27"]
[EventCountry "GER"]
[SourceTitle "playchess.com"]
[Source "ChessBase"]
[SourceQuality "1"]
[TimeControl "40/5400+30:1800+30"]

1. e4 {[%emt 0:00:00]} c5 {[%emt 0:00:00]} 2. Nf3 {[%emt 0:00:00]} d6 {[%emt 0:00:00]} 3. d4 {[%emt 0:00:00]} cxd4 {[%emt 0:00:00]} 4. Nxd4 {[%emt 0:00:00]} Nf6 {[%emt 0:00:00]} 5. Nc3 {[%emt 0:00:00]} Nc6 {[%emt 0:00:00]} 6. Bg5 {[%emt 0:02:43]} e6 {[%emt 0:00:00]} 7. Qd2 {[%emt 0:01:24]} a6 {[%emt 0:00:03]} 8. O-O-O {[%emt 0:03:15]} Bd7 {[%emt 0:00:04]} 9. f4 {[%emt 0:05:45]} Be7 {[%emt 0:00:07]} 10. Nxc6 {[%emt 0:20:11]} Bxc6 {[%emt 0:00:06]} 11. Qe1 {[%emt 0:04:15]} Qa5 {[%emt 0:02:53]} 12. Kb1 {[%emt 0:14:26]} h6 {[%emt 0:02:25]} 13. Bxf6 {[%emt 0:04:54]} Bxf6 {[%emt 0:00:06]} 14. Nd5 {[%emt 0:02:13]} Qxe1 {[%emt 0:00:06]} 15. Nxf6+ {[%emt 0:00:04]} gxf6 {[%emt 0:00:13]} 16. Rxe1 {[%emt 0:00:05]} h5 {[%emt 0:00:14]} 17. Bd3 {[%emt 0:06:04]} Ke7 {[%emt 0:00:49]} 18. Re2 {[%emt 0:14:14]} Rag8 {[%emt 0:00:38]} 19. Rf1 {[%emt 0:01:26]} h4 {[%emt 0:00:26]} 20. a3 {[%emt 0:06:13]} Rg4 {[%emt 0:00:28]} 21. c4 {[%emt 0:01:55]} Rhg8 {[%emt 0:01:04]} 22. Rff2 {[%emt 0:00:12]} e5 {[%emt 0:08:27]} 23. f5 {[%emt 0:01:10]} b5 {[%emt 0:01:07]} 24. cxb5 {[%emt 0:03:40]} axb5 {[%emt 0:01:05]} 25. b4 {[%emt 0:02:47]} Kd7 {[%emt 0:00:27]} 26. Kc1 {[%emt 0:00:18]} Kc7 {[%emt 0:00:09]} 27. Rc2 {[%emt 0:00:58]} Kb6 {[%emt 0:00:06]} 28. Rfe2 {[%emt 0:00:16]} Rf4 {[%emt 0:01:04]} 29. Rc3 {[%emt 0:01:26]} Rf1+ {[%emt 0:00:38]} 30. Kb2 {[%emt 0:00:30]} Rh1 {[%emt 0:00:15]} 31. Rec2 {[%emt 0:00:40]} Bb7 {[%emt 0:00:14]} 32. Rc7 {[%emt 0:00:42]} Rxh2 {[%emt 0:00:29]} 33. Rd7 {[%emt 0:01:32]} Rgxg2 {[%emt 0:00:24]} 34. Rxd6+ {[%emt 0:00:04]} Ka7 {[%emt 0:00:06]} 35. Rxg2 {[%emt 0:00:40]} Rxg2+ {[%emt 0:00:07]} 36. Kc3 {[%emt 0:00:09]} Rg7 {[%emt 0:01:28]} 37. Bxb5 {[%emt 0:01:40]} h3 {[%emt 0:00:24]} 38. Rd8 {[%emt 0:00:51]} Rh7 {[%emt 0:00:10]} 39. Bf1 {[%emt 0:00:17]} Bxe4 {[%emt 0:00:17]} 40. Rd7+ {[%emt 0:00:44]} Kb8 {[%emt 0:00:08]} 41. Bxh3 {[%emt 0:30:27]} Rxh3+ {[%emt 0:30:07]} 42. Kb2 {[%emt 0:00:51]} Rh7 {[%emt 0:00:17]} 43. Rd6 {[%emt 0:00:23]} Bxf5 {[%emt 0:00:11]} 44. Rxf6 {[%emt 0:00:01]} Be6 {[%emt 0:00:06]} 0-1

[Event "8. Arber-Schachopen 2019"]
[Site "Bodenmais"]
[Date "2019.08.01"]
[Round "6.9"]
[White "Vennemann, Juergen"]
[Black "Woelk, Tom-Frederic"]
[Result "0-1"]
[ECO "A67"]
[WhiteElo "1925"]
[BlackElo "2229"]
[Annotator "NA"]
[PlyCount "83"]
[EventDate "2019.07.27"]
[EventCountry "GER"]
[SourceTitle "playchess.com"]
[Source "ChessBase"]
[SourceQuality "1"]
[TimeControl "40/5400+30:1800+30"]

1. d4 {[%emt 0:00:00]} Nf6 {[%emt 0:00:00]} 2. c4 {[%emt 0:00:00]} c5 {[%emt 0:02:59]} 3. d5 {[%emt 0:00:34]} e6 {[%emt 0:00:06]} 4. Nc3 {[%emt 0:00:06]} exd5 {[%emt 0:00:03]} 5. cxd5 {[%emt 0:00:06]} d6 {[%emt 0:00:03]} 6. e4 {[%emt 0:00:22]} g6 {[%emt 0:00:05]} 7. f4 {[%emt 0:00:13]} Bg7 {[%emt 0:00:19]} 8. Bb5+ {[%emt 0:00:14]} Nfd7 {[%emt 0:00:07]} 9. a4 {[%emt 0:00:13]} O-O {[%emt 0:00:06]} 10. Nf3 {[%emt 0:00:12]} Na6 {[%emt 0:00:05]} 11. O-O {[%emt 0:00:59]} Nb4 {[%emt 0:00:28]} 12. Re1 {[%emt 0:00:22]} a6 {[%emt 0:00:28]} 13. Bf1 {[%emt 0:00:23]} Re8 {[%emt 0:00:32]} 14. Bd2 {[%emt 0:03:30]} Nf6 {[%emt 0:06:11]} 15. h3 {[%emt 0:00:25]} Rb8 {[%emt 0:02:38]} 16. Kh1 {[%emt 0:03:46]} Nh5 {[%emt 0:04:43]} 17. Kh2 {[%emt 0:03:29]} Bh6 {[%emt 0:01:16]} 18. g3 {[%emt 0:06:58]} Qd7 {[%emt 0:17:21]} 19. Be3 {[%emt 0:05:12]} b6 {[%emt 0:03:23]} 20. Qd2 {[%emt 0:01:11]} Nf6 {[%emt 0:00:25]} 21. Bf2 {[%emt 0:06:57]} Bb7 {[%emt 0:01:12]} 22. Re3 {[%emt 0:05:00]} Re7 {[%emt 0:09:40]} 23. Rae1 {[%emt 0:02:22]} Rbe8 {[%emt 0:00:31]} 24. Bc4 {[%emt 0:10:04]} Bc8 {[%emt 0:00:47]} 25. Bf1 {[%emt 0:00:29]} Nh5 {[%emt 0:00:39]} 26. R3e2 {[%emt 0:10:41]} c4 {[%emt 0:02:44]} 27. Nd4 {[%emt 0:12:10]} Nd3 {[%emt 0:00:09]} 28. Nc6 {[%emt 0:00:27]} Nhxf4 {[%emt 0:05:41]} 29. Nxe7+ {[%emt 0:01:26]} Rxe7 {[%emt 0:01:56]} 30. Be3 {[%emt 0:01:27]} Nxe2 {[%emt 0:02:42]} 31. Rxe2 {[%emt 0:01:26]} Bxe3 {[%emt 0:00:48]} 32. Rxe3 {[%emt 0:00:21]} Ne5 {[%emt 0:02:40]} 33. Qd4 {[%emt 0:02:29]} Qc7 {[%emt 0:00:42]} 34. Ne2 {[%emt 0:04:09]} Qc5 {[%emt 0:00:04]} 35. Qxc5 {[%emt 0:01:42]} bxc5 {[%emt 0:00:06]} 36. b3 {[%emt 0:01:37]} Rb7 {[%emt 0:03:47]} 37. bxc4 {[%emt 0:00:58]} Nxc4 {[%emt 0:00:07]} 38. Rc3 {[%emt 0:02:13]} Ne5 {[%emt 0:00:08]} 39. Nf4 {[%emt 0:04:54]} Rb2+ {[%emt 0:04:12]} 40. Bg2 {[%emt 0:01:12]} Bd7 {[%emt 0:02:00]} 41. a5 {[%emt 0:33:05]} Bb5 {[%emt 0:30:12]} 42. g4 {[%emt 0:01:31]} 0-1

[Event "8. Arber-Schachopen 2019"]
[Site "Bodenmais"]
[Date "2019.08.01"]
[Round "6.10"]
[White "Schmid, Wolfgang"]
[Black "Rotstein, Arkadij"]
[Result "0-1"]
[ECO "B43"]
[WhiteElo "2162"]
[BlackElo "2471"]
[Annotator "ChessBase"]
[PlyCount "62"]
[EventDate "2019.07.27"]
[EventCountry "GER"]
[SourceTitle "playchess.com"]
[Source "ChessBase"]
[SourceQuality "1"]
[TimeControl "40/5400+30:1800+30"]

1. e4 {[%emt 0:00:00]} c5 {[%emt 0:00:00]} 2. Nf3 {[%emt 0:00:00]} e6 {[%emt 0:00:00]} 3. d4 {[%emt 0:00:09]} cxd4 {[%emt 0:00:00]} 4. Nxd4 {[%emt 0:00:06]} a6 {[%emt 0:00:04]} 5. Nc3 {[%emt 0:00:41]} Qc7 {[%emt 0:00:12]} 6. Be2 {[%emt 0:01:10]} Nf6 {[%emt 0:00:37]} 7. a3 {[%emt 0:00:53]} b5 {[%emt 0:02:25]} 8. O-O {[%emt 0:05:23]} Bb7 {[%emt 0:02:58]} 9. Bf3 {[%emt 0:10:56]} d6 {[%emt 0:01:25]} 10. Qe2 {[%emt 0:08:31]} Nbd7 {[%emt 0:00:41]} 11. g3 {[%emt 0:02:49]} Be7 {[%emt 0:00:30]} 12. Bg2 {[%emt 0:00:17]} O-O {[%emt 0:00:07]} 13. Kh1 {[%emt 0:09:29]} Rac8 {[%emt 0:03:28]} 14. Nd1 {[%emt 0:08:46]} Qc4 {[%emt 0:02:05]} 15. Qxc4 {[%emt 0:09:48]} Rxc4 {[%emt 0:00:11]} 16. c3 {[%emt 0:03:01]} Bxe4 {[%emt 0:00:26]} 17. Bg5 {[%emt 0:01:55]} Bxg2+ {[%emt 0:00:52]} 18. Kxg2 {[%emt 0:00:04]} h6 {[%emt 0:00:23]} 19. Bxf6 {[%emt 0:02:04]} Bxf6 {[%emt 0:00:16]} 20. Ne3 {[%emt 0:00:23]} Rc7 {[%emt 0:00:39]} 21. Rfd1 {[%emt 0:00:45]} d5 {[%emt 0:00:21]} 22. a4 {[%emt 0:07:54]} Rb8 {[%emt 0:02:24]} 23. axb5 {[%emt 0:01:25]} axb5 {[%emt 0:02:02]} 24. Ndc2 {[%emt 0:01:00]} Nb6 {[%emt 0:01:10]} 25. Nb4 {[%emt 0:00:47]} Rcc8 {[%emt 0:00:50]} 26. Ra7 {[%emt 0:01:14]} Na4 {[%emt 0:01:13]} 27. Nd3 {[%emt 0:07:42]} d4 {[%emt 0:11:23]} 28. Ng4 {[%emt 0:02:17]} dxc3 {[%emt 0:00:38]} 29. Nxf6+ {[%emt 0:00:08]} gxf6 {[%emt 0:00:03]} 30. bxc3 {[%emt 0:00:19]} Nxc3 {[%emt 0:00:10]} 31. Re1 {[%emt 0:00:47]} b4 {[%emt 0:00:37]} 0-1

[Event "8. Arber-Schachopen 2019"]
[Site "Bodenmais"]
[Date "2019.08.01"]
[Round "6.11"]
[White "Medunova, Vera"]
[Black "Pohl-Kuemmel, Jens-Uwe"]
[Result "1/2-1/2"]
[ECO "B66"]
[WhiteElo "2093"]
[BlackElo "2288"]
[Annotator "NA"]
[PlyCount "75"]
[EventDate "2019.07.27"]
[EventCountry "GER"]
[SourceTitle "playchess.com"]
[Source "ChessBase"]
[SourceQuality "1"]
[TimeControl "40/5400+30:1800+30"]

1. e4 {[%emt 0:00:00]} c5 {[%emt 0:00:00]} 2. Nf3 {[%emt 0:00:00]} d6 {[%emt 0:00:00]} 3. d4 {[%emt 0:00:24]} cxd4 {[%emt 0:00:00]} 4. Nxd4 {[%emt 0:00:03]} Nf6 {[%emt 0:00:11]} 5. Nc3 {[%emt 0:00:05]} Nc6 {[%emt 0:00:27]} 6. Bg5 {[%emt 0:00:59]} e6 {[%emt 0:00:35]} 7. Qd2 {[%emt 0:01:21]} a6 {[%emt 0:01:17]} 8. O-O-O {[%emt 0:06:57]} h6 {[%emt 0:02:55]} 9. Bh4 {[%emt 0:00:58]} Bd7 {[%emt 0:01:49]} 10. f4 {[%emt 0:08:43]} Be7 {[%emt 0:05:35]} 11. Be2 {[%emt 0:15:07]} Qc7 {[%emt 0:16:21]} 12. Bf2 {[%emt 0:12:42]} Rc8 {[%emt 0:09:37]} 13. Kb1 {[%emt 0:06:33]} Nxd4 {[%emt 0:12:46]} 14. Bxd4 {[%emt 0:05:38]} e5 {[%emt 0:00:57]} 15. Be3 {[%emt 0:02:52]} Bc6 {[%emt 0:05:51]} 16. Nd5 {[%emt 0:05:36]} Bxd5 {[%emt 0:06:37]} 17. exd5 {[%emt 0:00:41]} Nxd5 {[%emt 0:02:40]} 18. Qxd5 {[%emt 0:10:07]} Qxc2+ {[%emt 0:00:13]} 19. Ka1 {[%emt 0:00:02]} Qxe2 {[%emt 0:00:25]} 20. Qxb7 {[%emt 0:00:33]} O-O {[%emt 0:00:21]} 21. Qxe7 {[%emt 0:06:03]} Qxe3 {[%emt 0:01:17]} 22. Qxd6 {[%emt 0:03:54]} Qxf4 {[%emt 0:01:08]} 23. g3 {[%emt 0:01:48]} Qg5 {[%emt 0:03:05]} 24. Qxa6 {[%emt 0:00:36]} Rc2 {[%emt 0:01:37]} 25. Qd3 {[%emt 0:01:36]} Rfc8 {[%emt 0:03:12]} 26. a3 {[%emt 0:00:25]} Qf6 {[%emt 0:07:22]} 27. Rd2 {[%emt 0:03:38]} R2c4 {[%emt 0:02:45]} 28. Rf1 {[%emt 0:01:51]} Qe6 {[%emt 0:09:09]} 29. Qd5 {[%emt 0:00:16]} Qe7 {[%emt 0:00:37]} 30. Qd7 {[%emt 0:01:41]} Rc1+ 31. Rxc1 {[%emt 0:00:06]} Rxc1+ {[%emt 0:01:11]} 32. Ka2 {[%emt 0:00:06]} Qc5 33. Qd8+ Kh7 34. Qd3+ g6 35. Qd5 Qxd5+ 36. Rxd5 Rc2 37. Rxe5 Rxh2 38. a4 1/2-1/2

[Event "8. Arber-Schachopen 2019"]
[Site "Bodenmais"]
[Date "2019.08.01"]
[Round "6.12"]
[White "Senner, Peter"]
[Black "Bielmeier, Ludwig"]
[Result "1/2-1/2"]
[ECO "A05"]
[WhiteElo "2231"]
[BlackElo "2083"]
[Annotator "NA"]
[PlyCount "52"]
[EventDate "2019.07.27"]
[EventCountry "GER"]
[SourceTitle "playchess.com"]
[Source "ChessBase"]
[SourceQuality "1"]
[TimeControl "40/5400+30:1800+30"]

1. Nf3 {[%emt 0:00:00]} Nf6 {[%emt 0:01:44]} 2. d3 {[%emt 0:00:00]} d6 {[%emt 0:01:06]} 3. g3 {[%emt 0:00:04]} c6 {[%emt 0:00:43]} 4. Bg2 {[%emt 0:00:24]} e5 {[%emt 0:01:01]} 5. e4 {[%emt 0:00:09]} g6 {[%emt 0:01:09]} 6. O-O {[%emt 0:00:08]} Bg7 {[%emt 0:00:08]} 7. h3 {[%emt 0:00:20]} O-O {[%emt 0:00:29]} 8. Be3 {[%emt 0:01:51]} Re8 {[%emt 0:06:31]} 9. c3 {[%emt 0:01:41]} Na6 {[%emt 0:02:12]} 10. Qb3 {[%emt 0:14:45]} Qe7 {[%emt 0:02:54]} 11. Nbd2 {[%emt 0:10:54]} d5 {[%emt 0:02:54]} 12. Rfe1 {[%emt 0:05:05]} dxe4 {[%emt 0:00:49]} 13. dxe4 {[%emt 0:04:20]} Nd7 {[%emt 0:02:24]} 14. Rad1 {[%emt 0:09:28]} Nac5 {[%emt 0:05:01]} 15. Qc2 {[%emt 0:00:29]} b5 {[%emt 0:01:00]} 16. b4 {[%emt 0:04:51]} Nb7 {[%emt 0:08:35]} 17. a4 {[%emt 0:03:52]} Nb6 {[%emt 0:10:38]} 18. axb5 {[%emt 0:06:30]} cxb5 {[%emt 0:00:13]} 19. c4 {[%emt 0:00:01]} bxc4 {[%emt 0:04:57]} 20. Nxc4 {[%emt 0:00:11]} Qxb4 {[%emt 0:06:38]} 21. Nxb6 {[%emt 0:00:10]} axb6 {[%emt 0:00:16]} 22. Rb1 {[%emt 0:00:08]} Qa4 {[%emt 0:01:18]} 23. Qxa4 {[%emt 0:05:47]} Rxa4 {[%emt 0:00:09]} 24. Rxb6 {[%emt 0:00:02]} Na5 {[%emt 0:02:01]} 25. Nd2 {[%emt 0:01:17]} Nc4 {[%emt 0:01:18]} 26. Nxc4 {[%emt 0:02:31]} Rxc4 {[%emt 0:02:43]} 1/2-1/2

[Event "8. Arber-Schachopen 2019"]
[Site "Bodenmais"]
[Date "2019.08.01"]
[Round "6.13"]
[White "Fauth, Dietmar"]
[Black "Kleibel, Uwe"]
[Result "0-1"]
[ECO "B21"]
[WhiteElo "2122"]
[BlackElo "2217"]
[Annotator "NA"]
[PlyCount "96"]
[EventDate "2019.07.27"]
[EventCountry "GER"]
[SourceTitle "playchess.com"]
[Source "ChessBase"]
[SourceQuality "1"]
[TimeControl "40/5400+30:1800+30"]

1. e4 {[%emt 0:00:00]} c5 {[%emt 0:00:00]} 2. d4 {[%emt 0:00:00]} cxd4 {[%emt 0:00:00]} 3. c3 {[%emt 0:00:00]} dxc3 {[%emt 0:00:00]} 4. Nxc3 {[%emt 0:00:00]} Nc6 {[%emt 0:00:00]} 5. Nf3 {[%emt 0:00:16]} e6 {[%emt 0:00:00]} 6. Bc4 {[%emt 0:00:24]} Nge7 {[%emt 0:00:03]} 7. Bg5 {[%emt 0:00:17]} h6 {[%emt 0:00:05]} 8. Be3 {[%emt 0:01:45]} Ng6 {[%emt 0:00:23]} 9. O-O {[%emt 0:05:47]} Be7 {[%emt 0:00:01]} 10. Nd4 {[%emt 0:03:20]} O-O {[%emt 0:00:59]} 11. a3 {[%emt 0:09:13]} a6 {[%emt 0:01:13]} 12. b4 {[%emt 0:09:22]} Nxd4 {[%emt 0:01:15]} 13. Bxd4 {[%emt 0:12:11]} b5 {[%emt 0:10:53]} 14. Bb3 {[%emt 0:05:11]} Bf6 {[%emt 0:06:25]} 15. f4 {[%emt 0:04:00]} Bxd4+ {[%emt 0:01:28]} 16. Qxd4 {[%emt 0:00:15]} Qc7 {[%emt 0:00:58]} 17. g3 {[%emt 0:06:07]} Bb7 {[%emt 0:05:08]} 18. Rac1 {[%emt 0:03:53]} Bc6 {[%emt 0:01:10]} 19. Rf2 {[%emt 0:14:02]} Qa7 {[%emt 0:01:57]} 20. Qd2 {[%emt 0:05:35]} Ne7 {[%emt 0:03:48]} 21. f5 {[%emt 0:00:41]} exf5 {[%emt 0:00:20]} 22. Nd5 {[%emt 0:02:17]} Bxd5 {[%emt 0:01:48]} 23. exd5 {[%emt 0:02:22]} d6 {[%emt 0:00:31]} 24. Kg2 {[%emt 0:00:12]} Rac8 {[%emt 0:08:50]} 25. Re1 {[%emt 0:01:53]} Rfe8 {[%emt 0:05:31]} 26. Bc2 {[%emt 0:02:42]} Kf8 {[%emt 0:03:44]} 27. Bxf5 {[%emt 0:01:47]} Nxf5 {[%emt 0:00:13]} 28. Rxf5 {[%emt 0:01:55]} Rxe1 {[%emt 0:00:58]} 29. Qxe1 {[%emt 0:00:02]} Rc2+ {[%emt 0:01:31]} 30. Kh3 {[%emt 0:00:27]} Qd7 {[%emt 0:03:56]} 31. g4 {[%emt 0:00:36]} Qe7 {[%emt 0:01:16]} 32. Qg3 {[%emt 0:01:28]} Re2 {[%emt 0:01:12]} 33. Rf3 {[%emt 0:00:35]} Qe5 {[%emt 0:00:41]} 34. Rd3 {[%emt 0:03:23]} Ke7 {[%emt 0:10:11]} 35. Qxe5+ {[%emt 0:00:20]} dxe5 {[%emt 0:01:00]} 36. d6+ {[%emt 0:01:22]} Kd7 {[%emt 0:00:08]} 37. Kg3 {[%emt 0:00:28]} Rc2 {[%emt 0:01:19]} 38. h4 {[%emt 0:03:46]} Rc6 {[%emt 0:00:08]} 39. Kf3 {[%emt 0:00:59]} Rxd6 {[%emt 0:00:07]} 40. Rc3 {[%emt 0:00:08]} Rd4 {[%emt 0:00:33]} 41. Rc5 {[%emt 0:01:18]} f6 {[%emt 0:00:00]} 42. Rc3 {[%emt 0:00:34]} Rf4+ {[%emt 0:00:00]} 43. Kg3 {[%emt 0:00:03]} g6 {[%emt 0:02:01]} 44. Rd3+ {[%emt 0:03:16]} Ke7 {[%emt 0:01:34]} 45. g5 {[%emt 0:03:45]} hxg5 {[%emt 0:00:55]} 46. hxg5 {[%emt 0:00:02]} f5 {[%emt 0:00:09]} 47. Rd5 {[%emt 0:00:35]} Ke6 {[%emt 0:00:38]} 48. Rc5 {[%emt 0:00:09]} Rc4 {[%emt 0:00:17]} 0-1